[Event "Saint Louis Super Swiss 2023"]
[Site "Saint Louis"]
[Date "2023.03.13"]
[Round "3.6"]
[White "Moradiabadi, Elshan"]
[Black "Yoo, Christopher Woojin"]
[Result "1/2-1/2"]
[ECO "E11"]
[WhiteElo "2507"]
[BlackElo "2591"]
[Annotator "TA"]
[PlyCount "65"]
[EventDate "2023.03.12"]
[EventType "swiss"]
[EventCountry "USA"]
[SourceTitle "playchess.com"]
[Source "ChessBase"]
[SourceQuality "1"]
[TimeControl "5400+30"]

{[%evp 11,65,7,15,2,25,16,17,14,17,15,12,17,20,14,4,8,25,20,25,28,18,22,18,19,17,17,27,14,18,13,19,0,39,41,45,51,49,47,44,37,44,49,51,19,24,0,4,0,47,0,6,0,0,0,0,0]} 1. d4 {[%emt 0:00:05]} Nf6 {[%emt 0:00:07]} 2. Nf3 {[%emt 0:00:00]} d5 {[%emt 0:00:08]} 3. c4 {[%emt 0:00:09]} e6 {[%emt 0:00:04]} 4. g3 {[%emt 0:00:06]} Bb4+ {[%emt 0:00:19]} 5. Bd2 {[%emt 0:00:05]} a5 {[%emt 0:00:41]} 6. Bg2 {[%emt 0:00:34]} O-O {[%emt 0:00:43] 6...0-0 scores better than 6...dxc4.} 7. Qc1 {[%emt 0:01:44] E11: Bogo-Indian.} Be7 {[%emt 0:09:34]} 8. O-O {[%emt 0:03:26]} Nbd7 {[%emt 0:00:27]} 9. Rd1 {[%emt 0:04:24]} c6 {[%emt 0:06:41]} 10. Bf4 {[%emt 0:06:09]} b6 {[%emt 0:02:25]} 11. Ne5 {[%emt 0:02:38]} Bb7 {[%emt 0:00:44]} 12. cxd5 {[%emt 0:01:28]} cxd5 {[%emt 0:00:28]} 13. Nc6 {[%emt 0:00:07]} Bxc6 {[%emt 0:01:02]} 14. Qxc6 {[%emt 0:00:02]} Rc8 {[%emt 0:01:00]} 15. Qb5 {[%emt 0:01:50] [#]} Ne8 $146 {[%emt 0:05:36][%cal Bf6e8,Be8d6,Bd6c4][%mdl 32]} ({Predecessor:} 15... Nh5 16. Bd2 Nhf6 17. Nc3 Ne8 18. Qd3 Nd6 19. b3 f5 20. Rac1 Nf6 21. Nb5 Qd7 22. Nxd6 {½-½ Gelfand,B (2663)-Cheparinov,I (2664) Wch Blitz Warsaw 2021 (21)}) 16. Nc3 {[%emt 0:02:57]} Bd6 {[%emt 0:06:22]} 17. Bd2 {[%emt 0:11:37]} Bb4 {[%emt 0:02:32]} 18. Qd3 {[%emt 0:00:46]} Nd6 {[%emt 0:02:20]} 19. Nb5 {[%emt 0:07:36]} Nc4 {[%emt 0:02:42][%cal Oc4b2]} 20. Bc1 {[%emt 0:00:03]} Nf6 {[%emt 0:03:57]} 21. b3 {[%emt 0:08:09]} (21. a3 $5 {[%cal Ra3b4]} Be7 22. b3 $11) 21... Qd7 {[%emt 0:02:03]} 22. a3 {[%emt 0:03:54]} ({Of course not} 22. bxc4 dxc4 23. Qc2 Qxb5 $15) 22... Qxb5 {[%emt 0:02:44]} 23. axb4 {[%emt 0:00:24]} Nd6 {[%emt 0:00:59]} 24. bxa5 {[%emt 0:04:42]} bxa5 {[%emt 0:00:24]} 25. Bf4 {[%emt 0:00:11]} Qxd3 {[%emt 0:01:10]} 26. Rxd3 {[%emt 0:00:05]} Nb7 {[%emt 0:00:03]} 27. Bd2 {[%emt 0:04:05][%cal Od2e1]} Rc2 {[%emt 0:01:27]} 28. Bf1 {[%emt 0:00:01]} Ne4 {[%emt 0:00:49]} 29. Be1 {[%emt 0:00:41]} Rfc8 {[%emt 0:02:58]} (29... Rb2 $11 {might be stronger.}) 30. f3 {[%emt 0:01:37]} Ned6 {[%emt 0:01:43] The position is equal.} 31. Bxa5 {[%emt 0:02:06]} Nxa5 {[%emt 0:01:00]} 32. Rxa5 {[%emt 0:00:01]} Rb8 {[%emt 0:03:39]} 33. Rc5 {[%emt 0:04:01] Weighted Error Value: White=0.06 (flawless) /Black=0.06 (flawless)} 1/2-1/2

[Event "Saint Louis Super Swiss 2023"]
[Site "Saint Louis"]
[Date "2023.03.13"]
[Round "3.8"]
[White "Marjanovic, Annamaria"]
[Black "Boros, Denes"]
[Result "1/2-1/2"]
[ECO "A25"]
[WhiteElo "2264"]
[BlackElo "2406"]
[Annotator "TA"]
[PlyCount "75"]
[EventDate "2023.03.12"]
[EventType "swiss"]
[EventCountry "USA"]
[SourceTitle "playchess.com"]
[Source "ChessBase"]
[SourceQuality "1"]
[TimeControl "5400+30"]

{[%evp 10,75,27,14,14,16,9,0,0,0,8,-7,0,2,12,0,0,-27,-15,-30,-25,-28,0,-7,0,-54,-51,-48,-58,-66,-78,-88,-69,-82,-56,-61,-79,-68,-66,-105,-92,-162,-157,-208,-197,-268,-163,-177,0,0,0,0,0,0,0,0,0,0,0,0,0,0,0,0,0,0,0,0]} 1. c4 {[%emt 0:00:04]} e5 {[%emt 0:00:12]} 2. g3 {[%emt 0:00:09]} Bc5 {[%emt 0:01:47]} 3. Bg2 {[%emt 0:01:38]} Nc6 {[%emt 0:00:24]} 4. Nc3 {[%emt 0:00:28]} Nf6 {[%emt 0:00:12]} 5. e3 {[%emt 0:02:17]} d5 {[%emt 0:00:27]} 6. Nxd5 {[%emt 0:01:10]} Nxd5 {[%emt 0:00:16] A25: English Opening vs King's Indian with ...Nc6 but without early d3.} 7. cxd5 {[%emt 0:00:06]} Nb4 {[%emt 0:00:04][%cal Oc8f5]} 8. d3 {[%emt 0:00:06]} Nxd5 {[%emt 0:00:26]} 9. Nf3 {[%emt 0:00:27]} Qe7 {[%emt 0:02:43]} 10. O-O {[%emt 0:01:26]} O-O {[%emt 0:00:38]} 11. a3 {[%emt 0:15:40]} a5 {[%emt 0:12:30] [#]} 12. Qb3 $146 {[%emt 0:09:06]} ({Predecessor:} 12. Qc2 Bd6 13. b3 c6 14. Bb2 Bg4 15. Nd2 Rad8 16. Rfe1 Rfe8 17. Nc4 Bc7 18. Rac1 {0-1 Ghaem Maghami,E (2585)-Adhiban,B (2483) Pardubice op rap 21st rapid 2010 (5)}) 12... c6 {[%emt 0:06:19]} 13. d4 {[%emt 0:11:16]} exd4 {[%emt 0:01:53]} 14. exd4 {[%emt 0:00:15] [#] Re1 is the strong threat.} Bb6 {[%emt 0:12:03]} 15. Re1 {[%emt 0:03:00]} Qf6 {[%emt 0:06:25]} 16. Bg5 {[%emt 0:02:20]} Qg6 {[%emt 0:01:11]} 17. Be3 {[%emt 0:11:58]} ({White should try} 17. Ne5 $11 Qxg5 18. Bxd5 Bxd4 19. Bxf7+ Kh8 20. Nf3 Bxf2+ 21. Kxf2) 17... a4 $15 {[%emt 0:02:54]} 18. Qd1 {[%emt 0:00:13]} Nxe3 {[%emt 0:04:40]} 19. fxe3 {[%emt 0:04:06]} Be6 {[%emt 0:00:19]} 20. Ne5 {[%emt 0:00:49]} Qg5 {[%emt 0:00:29]} 21. Qd3 {[%emt 0:04:27]} Rad8 {[%emt 0:04:46][%cal Og5e5]} 22. Qc3 {[%emt 0:06:27]} Bc7 {[%emt 0:02:22]} 23. Nf3 {[%emt 0:03:06]} Qh5 {[%emt 0:02:38]} 24. Rec1 {[%emt 0:02:23]} Rfe8 {[%emt 0:04:26]} 25. Qb4 {[%emt 0:02:02]} (25. Rc2 $17) 25... Bd5 $19 {[%emt 0:03:10][%csl LRe3,LRf3]} 26. Rf1 {[%emt 0:01:22]} (26. Nh4 $17 {was worth a try.}) 26... Rxe3 {[%emt 0:02:00]} 27. Qxb7 {[%emt 0:00:52] White is weak on the light squares} (27. Rae1 $142 Rxe1 28. Rxe1) 27... Bxg3 {[%emt 0:06:29]} ({Stronger than} 27... Bxf3 28. Qxc7 Rf8 29. Bxf3 Rxf3 30. Qxc6 $11) 28. hxg3 {[%emt 0:00:08]} Bxf3 $2 {[%emt 0:00:03]} ({Better is} 28... Rf8 $19 {[%cal Rd5f3]} 29. Rae1 Rxf3 30. Rxf3 Bxf3) 29. Rxf3 $11 {[%emt 0:02:20] The position is equal.} Rxf3 {[%emt 0:00:09]} 30. Qe7 $1 {[%emt 0:00:27][%cal Re7d8] The board is on fire.} Rb8 {[%emt 0:03:48]} (30... Rxd4 $2 31. Qe8#) 31. Qe2 $1 {[%emt 0:01:20][%mdl 64] [#] Pin} Rxa3 {[%emt 0:06:40][%mdl 64] Discovered Attack} 32. Qxh5 {[%emt 0:01:03]} Rxa1+ {[%emt 0:01:18]} 33. Kh2 {[%emt 0:00:37] Threatens to win with Qe5.} Rxb2 {[%emt 0:00:08]} 34. Qe5 {[%emt 0:01:16][%cal Re5e8]} g6 {[%emt 0:00:34]} 35. Qe8+ {[%emt 0:03:13]} Kg7 {[%emt 0:00:02] ...h5 would be deadly.} 36. Qe5+ {[%emt 0:00:11]} Kg8 {[%emt 0:00:08] Strongly threatening ...h5.} 37. Qe8+ {[%emt 0:00:44]} Kg7 {[%emt 0:00:05] aiming for ...h5.} 38. Qe5+ {[%emt 0:00:19] Weighted Error Value: White=0.14 (very precise) /Black=0.18 (very precise)} 1/2-1/2

[Event "Saint Louis Super Swiss 2023"]
[Site "Saint Louis"]
[Date "2023.03.13"]
[Round "3.9"]
[White "Grabinsky, Aaron"]
[Black "Cervantes Landeiro, Thalia"]
[Result "1-0"]
[ECO "B50"]
[WhiteElo "2405"]
[BlackElo "2253"]
[Annotator "TA"]
[PlyCount "23"]
[EventDate "2023.03.12"]
[EventType "swiss"]
[EventCountry "USA"]
[SourceTitle "playchess.com"]
[Source "ChessBase"]
[SourceQuality "1"]
[TimeControl "5400+30"]

{[%evp 9,10,8,20]} 1. e4 {[%emt 0:03:50]} c5 {[%emt 0:00:11]} 2. Nf3 {[%emt 0:00:07]} d6 {[%emt 0:00:09]} 3. Nc3 {[%emt 0:00:06]} a6 {[%emt 0:00:22]} 4. d4 {[%emt 0:00:10]} cxd4 {[%emt 0:00:11]} 5. Qxd4 {[%emt 0:00:04]} Nc6 {[%emt 0:00:28][%mdl 32768] [#]  Loss on time!?} {Predecessor:} 6. Qd3 $146 {B50: Sicilian: 2...d6, Miscellaneous.} g6 7. Nd5 Bg7 8. c3 Nf6 9. Bg5 O-O 10. Be2 Bg4 11. Rd1 Re8 12. O-O {1-0 Vaibhav,S (2595)-Nguyen,T (2651) Chessable Masters Play In rapid 2023 (3)} 1-0

[Event "Saint Louis Super Swiss 2023"]
[Site "Saint Louis"]
[Date "2023.03.13"]
[Round "3.10"]
[White "Malicka, Maria"]
[Black "Stearman, Josiah"]
[Result "1/2-1/2"]
[ECO "C99"]
[WhiteElo "2256"]
[BlackElo "2391"]
[Annotator "TA"]
[PlyCount "143"]
[EventDate "2023.03.12"]
[EventType "swiss"]
[EventCountry "USA"]
[SourceTitle "playchess.com"]
[Source "ChessBase"]
[SourceQuality "1"]
[TimeControl "5400+30"]

{[%evp 31,143,0,0,0,0,0,0,0,18,0,0,0,0,-8,-12,-32,14,12,9,0,6,14,12,6,2,0,2,-19,-22,-37,39,26,33,24,45,41,175,165,146,89,89,90,75,0,0,-16,6,0,68,60,294,292,298,298,284,284,287,193,196,204,238,224,244,239,456,441,1348,595,557,541,732,593,549,184,181,129,114,100,91,87,105,75,99,75,63,42,49,27,27,27,27,26,28,29,26,26,36,34,55,55,55,28,28,28,28,0,35,0,28,28,29,0,0,0]} 1. e4 {[%emt 0:00:02]} e5 {[%emt 0:07:07]} 2. Nf3 {[%emt 0:00:07]} Nc6 {[%emt 0:00:07]} 3. Bb5 {[%emt 0:00:08]} a6 {[%emt 0:00:04]} 4. Ba4 {[%emt 0:00:06]} Nf6 {[%emt 0:00:05]} 5. O-O {[%emt 0:00:08]} Be7 {[%emt 0:01:26]} 6. Re1 {[%emt 0:00:08]} b5 {[%emt 0:00:15]} 7. Bb3 {[%emt 0:00:04]} O-O {[%emt 0:00:08]} 8. c3 {[%emt 0:01:31]} d6 {[%emt 0:02:44]} 9. h3 {[%emt 0:00:15]} Na5 {[%emt 0:00:35]} 10. Bc2 {[%emt 0:00:11]} c5 {[%emt 0:00:11]} 11. d4 {[%emt 0:00:09]} Qc7 {[%emt 0:01:01]} 12. Nbd2 {[%emt 0:00:48]} cxd4 {[%emt 0:02:16]} 13. cxd4 {[%emt 0:00:08]} Nc6 {[%emt 0:00:12]} 14. d5 {[%emt 0:08:11]} Nb4 {[%emt 0:01:25][%cal Bc6b4,Bb4a6,Ba6c5][%mdl 32]} 15. Bb1 {[%emt 0:00:06]} a5 {[%emt 0:00:15]} 16. a3 {[%emt 0:06:50]} Na6 {[%emt 0:00:15]} 17. Nf1 {[%emt 0:00:07] C99: Closed Ruy Lopez: Chigorin Defence: 11 d4 Qc7 12 Nbd2 cxd4.} Nc5 {[%emt 0:04:25]} 18. Ng3 {[%emt 0:00:50]} Bd7 {[%emt 0:00:09]} 19. Bd2 {[%emt 0:06:19]} Qb6 {[%emt 0:10:55]} 20. Bc2 {[%emt 0:08:00]} b4 {[%emt 0:03:34]} 21. Be3 {[%emt 0:01:06]} Rfc8 {[%emt 0:03:00]} 22. Nd2 {[%emt 0:14:23]} a4 {[%emt 0:03:59] [#]} 23. Bd3 $146 {[%emt 0:07:19]} ({Predecessor:} 23. Rc1 bxa3 24. bxa3 Qb2 25. Nc4 Qb5 26. Bxc5 Rxc5 27. Bd3 Qb3 28. Qd2 Qb7 29. Rb1 Qc7 30. Nb6 {1-0 Daulyte Cornette,D (2334)-Kalnins,K (2254) Tartu U26 26th rapid 2010 (4)}) 23... Qb8 {[%emt 0:04:27]} (23... Rab8 $15) 24. Bf1 $11 {[%emt 0:02:27]} Bd8 {[%emt 0:00:15]} 25. Rc1 {[%emt 0:02:43][%cal Ba1c1,Bc1c2,Bc2d2,Bd2d5,Bd5e5][%mdl 32]} Ne8 {[%emt 0:05:37]} 26. Bxc5 {[%emt 0:08:15]} dxc5 {[%emt 0:00:20]} 27. Nc4 {[%emt 0:00:06]} Bg5 {[%emt 0:01:11]} 28. Rc2 {[%emt 0:01:25]} g6 {[%emt 0:01:13]} 29. d6 {[%emt 0:06:37][%cal Bd5d6,Bd6d7][%mdl 32]} Bf6 {[%emt 0:00:32]} 30. Qf3 {[%emt 0:05:17]} Rc6 {[%emt 0:01:25]} ({Black should try} 30... Rd8 $15) 31. Rd1 $14 {[%emt 0:01:51]} Qd8 {[%emt 0:01:05]} 32. Rcd2 {[%emt 0:10:08]} Rb8 {[%emt 0:03:09]} 33. Rd5 $1 {[%emt 0:04:19]} Be6 {[%emt 0:03:35] [#]} (33... bxa3 $14 34. Qxa3 Be6) 34. d7 $1 $18 {[%emt 0:01:29]} Nc7 {[%emt 0:00:11] [#]} 35. Nxe5 {[%emt 0:00:24] White has more active pieces. The black rooks are badly placed.} (35. Na5 $142 $1 {[%cal Ra5c6]} Rcb6 36. Rxc5 Bxd7 37. Nc6 Bxc6 38. Rxd8+ Bxd8 39. Bc4 (39. Rxe5 Bd7 $16)) 35... Bxe5 $16 {[%emt 0:01:54][%mdl 64] Remove Defender} 36. Rxe5 {[%emt 0:00:02][%cal Og3f5]} bxa3 {[%emt 0:00:54]} (36... f6 $2 37. Rxe6 Nxe6 38. e5 $18) 37. Qxa3 {[%emt 0:02:00]} (37. bxa3 $16 {[%cal Og3f5] Hoping for Nf5!} Bb3 38. Rd2) 37... Bb3 $1 $11 {[%emt 0:00:19]} 38. Rc1 {[%emt 0:02:29]} c4 {[%emt 0:04:43][%mdl 1024] Black has compensation.} (38... Ne6 $5 {[%cal Rd8d7]} 39. Rd5 Rc7 $11) 39. Rc5 $36 {[%emt 0:02:11][%mdl 2048] White fights for an advantage.} Nb5 {[%emt 0:10:33]} (39... Qxd7 $11 40. Bxc4 Ne6 41. Bxe6 Rxe6) 40. Qb4 $14 {[%emt 0:00:03]} Na7 {[%emt 0:00:06] [#]} (40... Nd4 $14 41. Rxc6 Rxb4) 41. Re5 $1 $18 {[%emt 0:00:34]} Re6 {[%emt 0:06:37]} 42. Rxe6 {[%emt 0:00:18]} fxe6 {[%emt 0:00:01]} 43. Qd6 {[%emt 0:00:52]} Rb6 {[%emt 0:00:06]} 44. Qd4 {[%emt 0:01:21][%cal Oe4e5] aiming for e5!} Rb7 {[%emt 0:05:08]} 45. Bxc4 {[%emt 0:00:10]} Rxd7 {[%emt 0:00:52]} 46. Qc5 {[%emt 0:00:34]} Qb8 {[%emt 0:01:12]} 47. Rc3 {[%emt 0:00:54][%cal Oc3b3] Black must now prevent Rxb3!} Rd1+ $2 {[%emt 0:02:04]} (47... Qd6 {might work better.}) 48. Kh2 {[%emt 0:00:01]} h5 {[%emt 0:01:02]} (48... Bxc4 $142 49. Qxc4 Rd6 50. Qxa4 Rd8) 49. e5 {[%emt 0:00:27]} (49. Bxb3 $142 axb3 50. Qg5) 49... Bxc4 {[%emt 0:00:51]} 50. Qxc4 {[%emt 0:00:44]} Rd5 {[%emt 0:01:46]} 51. Qxa4 {[%emt 0:00:36] And now Qc2 would win.} Nb5 {[%emt 0:00:16]} 52. Rb3 {[%emt 0:00:43]} (52. Qc2 Kh7 53. Rf3) 52... Qxe5 {[%emt 0:00:02]} 53. Qe4 {[%emt 0:00:18]} ({Better is} 53. Qa8+ $18 Kg7 54. Qe8) 53... Kg7 $16 {[%emt 0:01:10]} 54. Re3 {[%emt 0:00:40]} Qxe4 {[%emt 0:00:15]} 55. Nxe4 {[%emt 0:00:07][%mdl 4096] Endgame KRN-KRN} Nd4 {[%emt 0:00:34]} 56. Nc3 {[%emt 0:00:39] Dodges Rb5} Rd6 {[%emt 0:00:30]} 57. Kg1 {[%emt 0:00:47]} Rb6 {[%emt 0:00:59]} 58. Rd3 {[%emt 0:00:12]} (58. Re4 $5 {[%cal Re4d4]} Nb3 59. Na4 $16) 58... e5 {[%emt 0:00:03]} 59. Rd2 {[%emt 0:00:20][%cal Of2f4]} Kf7 {[%emt 0:01:11]} 60. f3 {[%emt 0:00:21]} Ke6 {[%emt 0:00:12]} 61. Kf2 {[%emt 0:00:09]} Nb3 {[%emt 0:00:26]} 62. Rd8 {[%emt 0:01:02]} Nc5 {[%emt 0:00:25]} 63. Nd1 {[%emt 0:00:27]} Rb3 {[%emt 0:00:28]} 64. Ke2 {[%emt 0:00:20]} Kf6 {[%emt 0:00:31]} 65. Rd6+ {[%emt 0:00:56]} Ne6 {[%emt 0:00:03]} 66. Kf2 {[%emt 0:00:28]} (66. Ra6 $5 {[%cal Re2d2]}) 66... Ke7 {[%emt 0:00:14]} 67. Rd5 {[%emt 0:00:11]} Kf6 {[%emt 0:00:03]} 68. Rd6 {[%emt 0:00:03]} Ke7 {[%emt 0:00:03]} 69. Rd5 {[%emt 0:00:02]} Kf6 {[%emt 0:00:02]} 70. Rd2 {[%emt 0:00:34]} Nf4 {[%emt 0:00:05]} 71. Nc3 {[%emt 0:01:01]} Rxb2 {[%emt 0:02:26][%mdl 64] Decoy} 72. Ne4+ {[%emt 0:00:03][%mdl 64] Decoy. Black defended with fortune. An exciting game.   Weighted Error Value: White=0.41/Black=0.29 (precise)} (72. Rxb2 $5 Nd3+ $8 73. Kf1 Nxb2 74. Ne4+ Ke6 75. h4 $11) 1/2-1/2

[Event "Saint Louis Super Swiss 2023"]
[Site "Saint Louis"]
[Date "2023.03.14"]
[Round "4.1"]
[White "Corrales Jimenez, Fidel"]
[Black "Theodorou, Nikolas"]
[Result "0-1"]
[ECO "E20"]
[WhiteElo "2489"]
[BlackElo "2584"]
[Annotator "TA"]
[PlyCount "47"]
[EventDate "2023.03.12"]
[EventType "swiss"]
[EventCountry "USA"]
[SourceTitle "playchess.com"]
[Source "ChessBase"]
[SourceQuality "1"]
[TimeControl "5400+30"]

{[%evp 9,47,-20,-5,-4,21,3,10,8,-3,-12,25,-53,-34,-30,-28,-29,-26,-36,-56,-55,-34,-62,-20,-68,-69,-130,-141,-234,-207,-512,-556,-887,-887,-947,-929,-29972,-29973,-5365,-1025,-1016]} 1. d4 {[%emt 0:01:30][%cal Bd2d4,Bd4d5][%mdl 32]} Nf6 {[%emt 0:00:10]} 2. c4 {[%emt 0:00:04]} e6 {[%emt 0:00:53]} 3. Nc3 {[%emt 0:00:05]} Bb4 {[%emt 0:00:04]} 4. f3 {[%emt 0:00:17]} c5 {[%emt 0:01:12]} 5. d5 {[%emt 0:00:56] [#]} b5 $1 {[%emt 0:02:33]} 6. e4 {[%emt 0:01:20] E20: Nimzo-Indian: 4 g3 and 4 f3.} d6 {[%emt 0:02:51] The modern move.} 7. a3 {[%emt 0:04:10]} Ba5 {[%emt 0:16:09]} 8. dxe6 {[%emt 0:03:52] The position is equal.} Bxe6 {[%emt 0:04:39]} 9. Bf4 {[%emt 0:15:25]} bxc4 {[%emt 0:08:40] [#]} (9... O-O $5) 10. Bxc4 $146 {[%emt 0:08:03]} ({Predecessor:} 10. Qxd6 Qb6 11. Qxb6 axb6 12. Nge2 Nc6 {½-½ Walther,J (2210)-Steenbekkers,F (2290) LAT MT-Strelis email 2018}) 10... Bxc3+ $1 $15 {[%emt 0:09:12]} 11. bxc3 {[%emt 0:00:06] Strongly threatening Bxe6.} Bxc4 {[%emt 0:00:09]} 12. Qa4+ {[%emt 0:00:19]} Nbd7 {[%emt 0:00:33]} 13. Qxc4 {[%emt 0:00:07] [#]} d5 $36 {[%emt 0:00:41][%mdl 2048] Black fights for an advantage.} 14. exd5 {[%emt 0:00:33]} O-O {[%emt 0:00:06]} 15. Ne2 {[%emt 0:12:52]} Re8 {[%emt 0:02:21] Threatens to win with ...Nb6.} (15... Nb6 $5 {[%cal Rb6c4]} 16. Qa2 (16. Qxc5 Nfxd5 17. Qd4 Rc8 $15) 16... Nfxd5 $17) 16. Rd1 {[%emt 0:03:28]} (16. d6 $11 {is more appropriate.}) 16... Nb6 {[%emt 0:09:50][%csl LRc4,LRd5]} 17. Qxc5 {[%emt 0:00:03]} ({Better is} 17. Qa2 $15) 17... Nfxd5 $17 {[%emt 0:01:11] White must now prevent ...Rc8.} 18. Bc1 {[%emt 0:20:44]} (18. g3 $17 {was necessary.}) 18... Qf6 {[%emt 0:13:25]} 19. Rd2 {[%emt 0:17:36]} (19. Rxd5 {was the crucial defense.} Rac8 20. Rf5 Rxc5 21. Rxf6 gxf6 22. Kf2) 19... Nxc3 $19 {[%emt 0:06:04] ...Rac8 would be deadly. A dynamic duo of knights.} ({Not} 19... Qxc3 20. Qxc3 Nxc3 21. Kf2 Rxe2+ 22. Rxe2 Nxe2 23. Kxe2 $11) 20. Rc2 {[%emt 0:06:14]} Rac8 {[%emt 0:02:28]} 21. Qg5 {[%emt 0:00:23]} Qd4 {[%emt 0:01:47] And now ...Qd1+ would win.} 22. Rxc3 {[%emt 0:02:49]} Rxc3 {[%emt 0:01:59]} 23. Qd2 {[%emt 0:00:27]} Qc4 {[%emt 0:01:49]} (23... Qc5 $142 24. Kf1 Rc2 {[%mdl 64] Skewer}) 24. O-O {[%emt 0:00:37] Weighted Error Value: White=1.15/Black=0.29 (precise)} 0-1

[Event "Saint Louis Super Swiss 2023"]
[Site "Saint Louis"]
[Date "2023.03.14"]
[Round "4.2"]
[White "Moradiabadi, Elshan"]
[Black "Nyzhnyk, Illya"]
[Result "1/2-1/2"]
[ECO "B90"]
[WhiteElo "2507"]
[BlackElo "2654"]
[Annotator "TA"]
[PlyCount "38"]
[EventDate "2023.03.12"]
[EventType "swiss"]
[EventCountry "USA"]
[SourceTitle "playchess.com"]
[Source "ChessBase"]
[SourceQuality "1"]
[TimeControl "5400+30"]

{[%evp 13,25,0,12,0,14,16,11,13,7,6,10,4,0,4]} 1. e4 {[%emt 0:00:02]} c5 {[%emt 0:00:28]} 2. Nf3 {[%emt 0:00:03]} d6 {[%emt 0:00:05]} 3. d4 {[%emt 0:00:03]} cxd4 {[%emt 0:00:04]} 4. Nxd4 {[%emt 0:00:02]} Nf6 {[%emt 0:00:05]} 5. Nc3 {[%emt 0:00:03]} a6 {[%emt 0:00:04]} 6. Rg1 {[%emt 0:00:05]} e5 {[%emt 0:00:46]} 7. Nb3 {[%emt 0:00:00]} Be6 {[%emt 0:00:18] The position is equal.} 8. g4 {[%emt 0:00:05] B90: Sicilian Najdorf: Unusual White 6th moves, 6 Be3 Ng4 and 6 Be3 e5.} d5 {[%emt 0:00:20]} 9. exd5 {[%emt 0:00:05]} Nxd5 {[%emt 0:00:05]} 10. Nxd5 {[%emt 0:00:03]} Qxd5 {[%emt 0:03:18]} 11. Qxd5 {[%emt 0:00:21]} Bxd5 {[%emt 0:00:05]} 12. Be3 {[%emt 0:00:03]} Nc6 {[%emt 0:00:41]} 13. O-O-O {[%emt 0:00:02] [#] A rather calm draw.   Weighted Error Value: White=0.00 (flawless) /Black=0.08 (flawless)} {Predecessor:} O-O-O $146 14. Bb6 Rd6 15. Rg3 Be6 16. Bg2 Rxd1+ 17. Kxd1 Be7 18. Nc5 Bxc5 19. Bxc5 Kc7 {½-½ Fedoseev,V (2704)-Grandelius,N (2663) Chess.com Rapid Wk6 Swiss 2022 (9)} 1/2-1/2